[Event "January 9 Early 2024"]
[Site "https://www.chess.com"]
[Date "2024.01.11"]
[Round "3"]
[White "Ibarra Jerez, Jose Carlos"]
[Black "Martinez Ramirez, Lennis"]
[Result "1-0"]
[Board "241"]
[TimeControl "180+1"]
[WhiteFideId "2226332"]
[BlackFideId "3509079"]
[WhiteElo "2955"]
[BlackElo "2715"]
[WhiteTeam "ESP"]
[BlackTeam "CUB"]
[WhiteClock "0:00:04"]
[BlackClock "0:00:01"]

1. e4 {[%clk 0:03:00]}  e6 {[%clk 0:02:58]} 2. d4 {[%clk 0:03:00]}  d5 {[%clk 0:02:59]} 3. Nc3 {[%clk 0:03:00]}  Bb4 {[%clk 0:02:58]} 4. Ne2 {[%clk 0:03:00]}  dxe4 {[%clk 0:02:57]} 5. a3 {[%clk 0:03:00]}  Bxc3+ {[%clk 0:02:57]} 6. Nxc3 {[%clk 0:03:00]}  Nc6 {[%clk 0:02:57]} 7. d5 {[%clk 0:02:36]}  exd5 {[%clk 0:02:53]} 8. Qxd5 {[%clk 0:02:36]}  Be6 {[%clk 0:02:51]} 9. Qxe4 {[%clk 0:02:36]}  Nf6 {[%clk 0:02:51]} 10. Qh4 {[%clk 0:02:36]}  Qd4 {[%clk 0:02:47]} 11. Bg5 {[%clk 0:02:36]}  Qxh4 {[%clk 0:02:45]} 12. Bxh4 {[%clk 0:02:36]}  O-O-O {[%clk 0:02:36]} 13. Bd3 {[%clk 0:02:21]}  Ne5 {[%clk 0:02:34]} 14. Be2 {[%clk 0:02:18]}  Bf5 {[%clk 0:02:33]} 15. Rc1 {[%clk 0:02:15]}  Rhe8 {[%clk 0:01:59]} 16. O-O {[%clk 0:02:05]}  Rd2 {[%clk 0:01:57]} 17. Bb5 {[%clk 0:01:23]}  c6 {[%clk 0:01:54]} 18. Ba4 {[%clk 0:01:23]}  Nc4 {[%clk 0:01:54]} 19. Bg5 {[%clk 0:01:21]}  Rd6 {[%clk 0:01:48]} 20. Bb3 {[%clk 0:01:12]}  Nd2 {[%clk 0:00:47]} 21. Bxf7 {[%clk 0:00:57]}  Re7 {[%clk 0:00:20]} 22. Bxd2 {[%clk 0:00:53]}  Rxd2 {[%clk 0:00:16]} 23. Bb3 {[%clk 0:00:54]}  Ne4 {[%clk 0:00:09]} 24. Rfe1 {[%clk 0:00:44]}  Nxc3 {[%clk 0:00:07]} 25. Rxe7 {[%clk 0:00:43]}  Ne2+ {[%clk 0:00:07]} 26. Rxe2 {[%clk 0:00:43]}  Rxe2 {[%clk 0:00:08]} 27. Kf1 {[%clk 0:00:43]}  Rd2 {[%clk 0:00:05]} 28. Ke1 {[%clk 0:00:42]}  Rd6 {[%clk 0:00:05]} 29. Rd1 {[%clk 0:00:41]}  Rh6 {[%clk 0:00:05]} 30. h3 {[%clk 0:00:38]}  Rg6 {[%clk 0:00:05]} 31. Kf1 {[%clk 0:00:34]}  Kc7 {[%clk 0:00:05]} 32. f3 {[%clk 0:00:28]}  Rf6 {[%clk 0:00:03]} 33. Kf2 {[%clk 0:00:26]}  h5 {[%clk 0:00:03]} 34. h4 {[%clk 0:00:26]}  b5 {[%clk 0:00:02]} 35. Re1 {[%clk 0:00:21]}  Kd6 {[%clk 0:00:02]} 36. c3 {[%clk 0:00:20]}  a5 {[%clk 0:00:02]} 37. Rd1+ {[%clk 0:00:17]}  Kc5 {[%clk 0:00:02]} 38. Re1 {[%clk 0:00:17]}  a4 {[%clk 0:00:03]} 39. Bd1 {[%clk 0:00:17]}  Be6 {[%clk 0:00:03]} 40. Re5+ {[%clk 0:00:15]}  Kc4 {[%clk 0:00:02]} 41. Rxh5 {[%clk 0:00:15]}  Kd3 {[%clk 0:00:02]} 42. Re5 {[%clk 0:00:11]}  Kd2 {[%clk 0:00:02]} 43. Re1 {[%clk 0:00:08]}  Bc4 {[%clk 0:00:02]} 44. g4 {[%clk 0:00:06]}  Rd6 {[%clk 0:00:02]} 45. h5 {[%clk 0:00:05]}  Rd5 {[%clk 0:00:02]} 46. f4 {[%clk 0:00:04]}  Rd6 {[%clk 0:00:01]} 47. Bf3 {[%clk 0:00:04]} 1-0

[Event "January 9 Early 2024"]
[Site "https://www.chess.com"]
[Date "2024.01.11"]
[Round "3"]
[White "Rohith Krishna S"]
[Black "Grutter, Tim"]
[Result "1-0"]
[Board "242"]
[TimeControl "180+1"]
[WhiteFideId "46617051"]
[BlackFideId "1057472"]
[WhiteElo "2835"]
[BlackElo "2558"]
[WhiteTeam "IND"]
[BlackTeam "NED"]
[WhiteClock "0:00:03"]
[BlackClock "0:00:01"]

1. e4 {[%clk 0:03:00]}  c5 {[%clk 0:02:59]} 2. Nf3 {[%clk 0:02:59]}  d6 {[%clk 0:02:56]} 3. Bb5+ {[%clk 0:02:59]}  Bd7 {[%clk 0:02:52]} 4. Bxd7+ {[%clk 0:02:55]}  Qxd7 {[%clk 0:02:53]} 5. O-O {[%clk 0:02:41]}  Nc6 {[%clk 0:02:49]} 6. d4 {[%clk 0:02:40]}  cxd4 {[%clk 0:02:43]} 7. Nxd4 {[%clk 0:02:41]}  Nf6 {[%clk 0:02:41]} 8. Nc3 {[%clk 0:02:41]}  g6 {[%clk 0:02:41]} 9. Bg5 {[%clk 0:02:39]}  Bg7 {[%clk 0:02:41]} 10. Nf3 {[%clk 0:02:38]}  O-O {[%clk 0:02:28]} 11. Qd2 {[%clk 0:02:31]}  Rac8 {[%clk 0:02:20]} 12. Rad1 {[%clk 0:02:29]}  Qe6 {[%clk 0:02:18]} 13. Rfe1 {[%clk 0:02:26]}  Na5 {[%clk 0:02:14]} 14. Nd5 {[%clk 0:02:21]}  Nc4 {[%clk 0:02:07]} 15. Qb4 {[%clk 0:02:14]}  Nxb2 {[%clk 0:01:28]} 16. Nd4 {[%clk 0:01:45]}  Nxd5 {[%clk 0:01:14]} 17. Qxb2 {[%clk 0:01:02]}  Qg4 {[%clk 0:00:41]} 18. exd5 {[%clk 0:00:52]}  Qxg5 {[%clk 0:00:40]} 19. Qxb7 {[%clk 0:00:50]}  Bxd4 {[%clk 0:00:38]} 20. Rxd4 {[%clk 0:00:50]}  Rxc2 {[%clk 0:00:39]} 21. Qxa7 {[%clk 0:00:48]}  Rc1 {[%clk 0:00:22]} 22. Rdd1 {[%clk 0:00:47]}  Rxd1 {[%clk 0:00:20]} 23. Rxd1 {[%clk 0:00:47]}  Rc8 {[%clk 0:00:19]} 24. Qa3 {[%clk 0:00:36]}  Rc5 {[%clk 0:00:16]} 25. g3 {[%clk 0:00:30]}  Qg4 {[%clk 0:00:11]} 26. Rb1 {[%clk 0:00:23]}  Qe4 {[%clk 0:00:11]} 27. Rb8+ {[%clk 0:00:18]}  Kg7 {[%clk 0:00:11]} 28. Qb2+ {[%clk 0:00:19]}  f6 {[%clk 0:00:12]} 29. Rb4 {[%clk 0:00:14]}  Qe1+ {[%clk 0:00:08]} 30. Kg2 {[%clk 0:00:14]}  Rxd5 {[%clk 0:00:09]} 31. Rb7 {[%clk 0:00:06]}  Rd1 {[%clk 0:00:07]} 32. Qb4 {[%clk 0:00:04]}  Qf1+ {[%clk 0:00:05]} 33. Kf3 {[%clk 0:00:05]}  Rd3+ {[%clk 0:00:05]} 34. Kg4 {[%clk 0:00:04]}  h5+ {[%clk 0:00:03]} 35. Kh4 {[%clk 0:00:04]}  g5+ {[%clk 0:00:01]} 36. Kxh5 {[%clk 0:00:02]}  Qe2+ {[%clk 0:00:01]} 37. Qg4 {[%clk 0:00:02]}  Qe5 {[%clk 0:00:01]} 38. f4 {[%clk 0:00:02]}  Qe1 {[%clk 0:00:01]} 39. fxg5 {[%clk 0:00:02]}  Rd5 {[%clk 0:00:01]} 40. Qf4 {[%clk 0:00:02]}  Rxg5+ {[%clk 0:00:01]} 41. Qxg5+ {[%clk 0:00:03]}  fxg5 {[%clk 0:00:01]} 42. Rxe7+ {[%clk 0:00:03]}  Kf6 {[%clk 0:00:01]} 43. Rxe1 {[%clk 0:00:03]} 1-0

[Event "January 9 Early 2024"]
[Site "https://www.chess.com"]
[Date "2024.01.11"]
[Round "3"]
[White "Bolivar Losada, Jeison"]
[Black "Sahil, Tickoo"]
[Result "0-1"]
[Board "245"]
[TimeControl "180+1"]
[WhiteFideId "4404793"]
[BlackFideId "5019710"]
[WhiteElo "2216"]
[BlackElo "2415"]
[WhiteTeam "COL"]
[BlackTeam "IND"]
[WhiteClock "0:00:04"]
[BlackClock "0:00:12"]

1. e4 {[%clk 0:02:36]}  c5 {[%clk 0:02:59]} 2. Nc3 {[%clk 0:02:35]}  Nc6 {[%clk 0:02:58]} 3. g4 {[%clk 0:02:35]}  h5 {[%clk 0:02:53]} 4. g5 {[%clk 0:02:35]}  h4 {[%clk 0:02:47]} 5. d3 {[%clk 0:02:35]}  d6 {[%clk 0:02:46]} 6. Nh3 {[%clk 0:02:35]}  e6 {[%clk 0:02:36]} 7. f4 {[%clk 0:02:33]}  Nge7 {[%clk 0:02:34]} 8. Bg2 {[%clk 0:02:33]}  Ng6 {[%clk 0:02:33]} 9. O-O {[%clk 0:02:33]}  Be7 {[%clk 0:02:31]} 10. f5 {[%clk 0:02:33]}  Nge5 {[%clk 0:02:30]} 11. Kh1 {[%clk 0:01:56]}  b6 {[%clk 0:02:24]} 12. Ne2 {[%clk 0:01:42]}  Bb7 {[%clk 0:02:24]} 13. fxe6 {[%clk 0:01:26]}  fxe6 {[%clk 0:02:23]} 14. Nhf4 {[%clk 0:01:27]}  Qd7 {[%clk 0:02:10]} 15. Bh3 {[%clk 0:01:24]}  Nd8 {[%clk 0:01:59]} 16. Nxe6 {[%clk 0:01:23]}  Nxe6 {[%clk 0:01:58]} 17. Nf4 {[%clk 0:01:23]}  Bc8 {[%clk 0:01:21]} 18. Nxe6 {[%clk 0:01:17]}  Qxe6 {[%clk 0:00:52]} 19. Bxe6 {[%clk 0:01:15]}  Bxe6 {[%clk 0:00:53]} 20. Bf4 {[%clk 0:01:08]}  Ng6 {[%clk 0:00:51]} 21. Qd2 {[%clk 0:01:00]}  O-O-O {[%clk 0:00:49]} 22. a4 {[%clk 0:01:00]}  a5 {[%clk 0:00:49]} 23. c3 {[%clk 0:00:56]}  Rhf8 {[%clk 0:00:47]} 24. Be3 {[%clk 0:00:42]}  d5 {[%clk 0:00:47]} 25. Qg2 {[%clk 0:00:20]}  h3 {[%clk 0:00:41]} 26. Qg3 {[%clk 0:00:16]}  Bd6 {[%clk 0:00:36]} 27. Qg1 {[%clk 0:00:09]}  dxe4 {[%clk 0:00:34]} 28. dxe4 {[%clk 0:00:09]}  Ne5 {[%clk 0:00:30]} 29. Rxf8 {[%clk 0:00:09]}  Rxf8 {[%clk 0:00:30]} 30. Rf1 {[%clk 0:00:09]}  Re8 {[%clk 0:00:18]} 31. Qf2 {[%clk 0:00:07]}  Ng4 {[%clk 0:00:16]} 32. Qe2 {[%clk 0:00:07]}  Nxe3 {[%clk 0:00:15]} 33. Qxe3 {[%clk 0:00:07]}  Bd7 {[%clk 0:00:16]} 34. Re1 {[%clk 0:00:06]}  Bc6 {[%clk 0:00:16]} 35. Qd3 {[%clk 0:00:05]}  Kc7 {[%clk 0:00:16]} 36. Kg1 {[%clk 0:00:05]}  Re6 {[%clk 0:00:16]} 37. e5 {[%clk 0:00:04]}  Bxe5 {[%clk 0:00:13]} 38. Qh7 {[%clk 0:00:04]}  Bxh2+ {[%clk 0:00:12]} 39. Kxh2 {[%clk 0:00:05]}  Rxe1 {[%clk 0:00:13]} 40. Qxg7+ {[%clk 0:00:05]}  Kb8 {[%clk 0:00:13]} 41. Qf8+ {[%clk 0:00:05]}  Ka7 {[%clk 0:00:12]} 42. Qf7+ {[%clk 0:00:04]}  Bb7 {[%clk 0:00:12]} 43. g6 {[%clk 0:00:04]}  Rh1+ {[%clk 0:00:12]} 44. Kg3 {[%clk 0:00:04]}  Rg1+ {[%clk 0:00:12]} 0-1

[Event "January 9 Early 2024"]
[Site "https://www.chess.com"]
[Date "2024.01.11"]
[Round "3"]
[White "Sofronie, Claudia-Ramona"]
[Black "Sztokbant, Bernardo Vainzoff"]
[Result "1-0"]
[Board "246"]
[TimeControl "180+1"]
[WhiteFideId "1205722"]
[BlackFideId "2115956"]
[WhiteElo "2277"]
[BlackElo "2457"]
[WhiteTeam "ROU"]
[BlackTeam "BRA"]
[WhiteClock "0:00:10"]
[BlackClock "0:00:01"]

1. d4 {[%clk 0:03:00]}  Nf6 {[%clk 0:02:59]} 2. Bf4 {[%clk 0:03:00]}  d5 {[%clk 0:02:57]} 3. e3 {[%clk 0:03:00]}  Bf5 {[%clk 0:02:57]} 4. Bd3 {[%clk 0:02:56]}  e6 {[%clk 0:02:55]} 5. c3 {[%clk 0:02:53]}  Bd6 {[%clk 0:02:50]} 6. Nf3 {[%clk 0:02:51]}  Bxd3 {[%clk 0:02:45]} 7. Qxd3 {[%clk 0:02:50]}  O-O {[%clk 0:02:46]} 8. O-O {[%clk 0:02:45]}  Nc6 {[%clk 0:02:42]} 9. Nbd2 {[%clk 0:02:43]}  Re8 {[%clk 0:02:32]} 10. Ne5 {[%clk 0:02:42]}  Nh5 {[%clk 0:02:06]} 11. Ndf3 {[%clk 0:02:36]}  Nxf4 {[%clk 0:02:02]} 12. exf4 {[%clk 0:02:35]}  f6 {[%clk 0:01:56]} 13. Nxc6 {[%clk 0:02:33]}  bxc6 {[%clk 0:01:57]} 14. g3 {[%clk 0:02:26]}  c5 {[%clk 0:01:57]} 15. Rfe1 {[%clk 0:02:23]}  Rb8 {[%clk 0:01:49]} 16. Rab1 {[%clk 0:02:21]}  Qd7 {[%clk 0:01:42]} 17. Kg2 {[%clk 0:02:18]}  cxd4 {[%clk 0:01:39]} 18. cxd4 {[%clk 0:02:12]}  Qa4 {[%clk 0:01:39]} 19. a3 {[%clk 0:02:06]}  Rb3 {[%clk 0:01:37]} 20. Qc2 {[%clk 0:02:01]}  g6 {[%clk 0:01:14]} 21. h4 {[%clk 0:01:59]}  Kg7 {[%clk 0:01:07]} 22. Re2 {[%clk 0:01:35]}  Qb5 {[%clk 0:01:01]} 23. Rd1 {[%clk 0:01:15]}  a5 {[%clk 0:00:53]} 24. Rdd2 {[%clk 0:01:08]}  a4 {[%clk 0:00:46]} 25. h5 {[%clk 0:01:04]}  c5 {[%clk 0:00:36]} 26. hxg6 {[%clk 0:01:02]}  hxg6 {[%clk 0:00:35]} 27. Nh4 {[%clk 0:00:57]}  f5 {[%clk 0:00:35]} 28. Nf3 {[%clk 0:00:56]}  c4 {[%clk 0:00:27]} 29. Ng5 {[%clk 0:00:49]}  Qd7 {[%clk 0:00:20]} 30. Rd1 {[%clk 0:00:47]}  Rbb8 {[%clk 0:00:10]} 31. Rde1 {[%clk 0:00:46]}  Re7 {[%clk 0:00:07]} 32. Rxe6 {[%clk 0:00:42]}  Rbe8 {[%clk 0:00:05]} 33. Rxe7+ {[%clk 0:00:36]}  Rxe7 {[%clk 0:00:06]} 34. Rxe7+ {[%clk 0:00:35]}  Bxe7 {[%clk 0:00:07]} 35. Nf3 {[%clk 0:00:35]}  Bf6 {[%clk 0:00:07]} 36. Qc3 {[%clk 0:00:32]}  Qb5 {[%clk 0:00:03]} 37. Qe3 {[%clk 0:00:31]}  Kf7 {[%clk 0:00:02]} 38. Qc3 {[%clk 0:00:29]}  Qe8 {[%clk 0:00:02]} 39. Qd2 {[%clk 0:00:27]}  Qe4 {[%clk 0:00:02]} 40. Qe3 {[%clk 0:00:26]}  Qc2 {[%clk 0:00:02]} 41. Ne5+ {[%clk 0:00:21]}  Kg7 {[%clk 0:00:02]} 42. Nd7 {[%clk 0:00:19]}  Qxb2 {[%clk 0:00:02]} 43. Qe6 {[%clk 0:00:16]}  Qxd4 {[%clk 0:00:02]} 44. Qd6 {[%clk 0:00:15]}  Qe4+ {[%clk 0:00:02]} 45. Kg1 {[%clk 0:00:14]}  Be7 {[%clk 0:00:02]} 46. Qc7 {[%clk 0:00:13]}  c3 {[%clk 0:00:02]} 47. Ne5 {[%clk 0:00:11]}  c2 {[%clk 0:00:01]} 48. Qxe7+ {[%clk 0:00:11]}  Kg8 {[%clk 0:00:02]} 49. Qf7+ {[%clk 0:00:10]}  Kh8 {[%clk 0:00:01]} 50. Nxg6# {[%clk 0:00:10]} 1-0

[Event "January 9 Early 2024"]
[Site "https://www.chess.com"]
[Date "2024.01.11"]
[Round "3"]
[White "Rajdeep Sarkar"]
[Black "Tqebuchava, Zurab"]
[Result "1-0"]
[Board "247"]
[TimeControl "180+1"]
[WhiteFideId "25007963"]
[BlackFideId "13601113"]
[WhiteElo "2402"]
[BlackElo "2128"]
[WhiteTeam "IND"]
[BlackTeam "GEO"]
[WhiteClock "0:00:10"]
[BlackClock "0:00:01"]

1. Nf3 {[%clk 0:02:59]}  d5 {[%clk 0:02:59]} 2. g3 {[%clk 0:02:58]}  Nf6 {[%clk 0:02:58]} 3. Bg2 {[%clk 0:02:58]}  c6 {[%clk 0:02:56]} 4. O-O {[%clk 0:02:57]}  Bf5 {[%clk 0:02:53]} 5. d3 {[%clk 0:02:57]}  h6 {[%clk 0:02:51]} 6. c4 {[%clk 0:02:57]}  e6 {[%clk 0:02:50]} 7. b3 {[%clk 0:02:56]}  Be7 {[%clk 0:02:46]} 8. Bb2 {[%clk 0:02:56]}  O-O {[%clk 0:02:41]} 9. Nbd2 {[%clk 0:02:55]}  Bh7 {[%clk 0:02:33]} 10. a3 {[%clk 0:02:55]}  a5 {[%clk 0:02:31]} 11. Ra2 {[%clk 0:02:54]}  Nbd7 {[%clk 0:02:27]} 12. Qa1 {[%clk 0:02:54]}  Re8 {[%clk 0:02:21]} 13. Bc3 {[%clk 0:02:52]}  a4 {[%clk 0:02:13]} 14. b4 {[%clk 0:02:52]}  Bf8 {[%clk 0:02:03]} 15. Re1 {[%clk 0:02:39]}  Nb6 {[%clk 0:01:48]} 16. e4 {[%clk 0:02:33]}  dxc4 {[%clk 0:01:43]} 17. dxc4 {[%clk 0:02:32]}  Qd3 {[%clk 0:01:20]} 18. c5 {[%clk 0:02:18]}  Nc8 {[%clk 0:01:12]} 19. Nd4 {[%clk 0:02:04]}  Qa6 {[%clk 0:01:00]} 20. f4 {[%clk 0:01:26]}  b6 {[%clk 0:00:56]} 21. b5 {[%clk 0:01:02]}  cxb5 {[%clk 0:00:49]} 22. c6 {[%clk 0:01:03]}  Bc5 {[%clk 0:00:45]} 23. Kh1 {[%clk 0:01:00]}  Ng4 {[%clk 0:00:40]} 24. h3 {[%clk 0:00:55]}  e5 {[%clk 0:00:37]} 25. hxg4 {[%clk 0:00:38]}  exd4 {[%clk 0:00:36]} 26. Bxd4 {[%clk 0:00:38]}  Bxd4 {[%clk 0:00:29]} 27. Qxd4 {[%clk 0:00:39]}  Ne7 {[%clk 0:00:28]} 28. e5 {[%clk 0:00:37]}  Rad8 {[%clk 0:00:23]} 29. Qf2 {[%clk 0:00:34]}  Qc8 {[%clk 0:00:19]} 30. f5 {[%clk 0:00:22]}  Nxc6 {[%clk 0:00:15]} 31. Rc2 {[%clk 0:00:22]}  Qd7 {[%clk 0:00:14]} 32. Bxc6 {[%clk 0:00:20]}  Qc7 {[%clk 0:00:12]} 33. Nf3 {[%clk 0:00:16]}  Re7 {[%clk 0:00:10]} 34. f6 {[%clk 0:00:14]}  Bxc2 {[%clk 0:00:07]} 35. fxe7 {[%clk 0:00:14]}  Rc8 {[%clk 0:00:06]} 36. Qxc2 {[%clk 0:00:13]}  Qxe7 {[%clk 0:00:06]} 37. Qe4 {[%clk 0:00:13]}  Qxa3 {[%clk 0:00:05]} 38. Bxb5 {[%clk 0:00:12]}  Qc5 {[%clk 0:00:04]} 39. Bxa4 {[%clk 0:00:12]}  Qf2 {[%clk 0:00:04]} 40. Qe2 {[%clk 0:00:11]}  Qxg3 {[%clk 0:00:03]} 41. Rg1 {[%clk 0:00:11]}  Qh3+ {[%clk 0:00:02]} 42. Nh2 {[%clk 0:00:11]}  Rc3 {[%clk 0:00:01]} 43. e6 {[%clk 0:00:10]} 1-0

[Event "January 9 Early 2024"]
[Site "https://www.chess.com"]
[Date "2024.01.11"]
[Round "3"]
[White "Niemann, Hans Moke"]
[Black "Krzyzanowski, Marcin"]
[Result "0-1"]
[Board "248"]
[TimeControl "180+1"]
[WhiteFideId "2093596"]
[BlackFideId "1132199"]
[WhiteElo "3061"]
[BlackElo "2793"]
[WhiteTeam "USA"]
[BlackTeam "POL"]
[WhiteClock "0:00:14"]
[BlackClock "0:00:03"]

1. e4 {[%clk 0:02:53]}  c5 {[%clk 0:02:58]} 2. Nf3 {[%clk 0:02:53]}  d6 {[%clk 0:02:58]} 3. Bc4 {[%clk 0:02:48]}  Nf6 {[%clk 0:02:57]} 4. d3 {[%clk 0:02:48]}  e6 {[%clk 0:02:56]} 5. O-O {[%clk 0:02:48]}  Be7 {[%clk 0:02:56]} 6. Re1 {[%clk 0:02:48]}  O-O {[%clk 0:02:57]} 7. Bb3 {[%clk 0:02:43]}  Nc6 {[%clk 0:02:57]} 8. c3 {[%clk 0:02:44]}  e5 {[%clk 0:02:53]} 9. h3 {[%clk 0:02:42]}  h6 {[%clk 0:02:49]} 10. d4 {[%clk 0:02:42]}  cxd4 {[%clk 0:02:30]} 11. cxd4 {[%clk 0:02:43]}  exd4 {[%clk 0:02:28]} 12. Nxd4 {[%clk 0:02:42]}  Nxd4 {[%clk 0:02:29]} 13. Qxd4 {[%clk 0:02:42]}  Be6 {[%clk 0:02:28]} 14. Nc3 {[%clk 0:02:42]}  Qb6 {[%clk 0:02:20]} 15. Be3 {[%clk 0:02:39]}  Qxd4 {[%clk 0:02:14]} 16. Bxd4 {[%clk 0:02:40]}  Rfc8 {[%clk 0:01:57]} 17. Rac1 {[%clk 0:02:35]}  a6 {[%clk 0:01:53]} 18. f3 {[%clk 0:02:28]}  b5 {[%clk 0:01:52]} 19. Kf2 {[%clk 0:02:27]}  Bd8 {[%clk 0:01:45]} 20. Ne2 {[%clk 0:02:25]}  Bxb3 {[%clk 0:01:42]} 21. axb3 {[%clk 0:02:26]}  Nd7 {[%clk 0:01:41]} 22. b4 {[%clk 0:02:23]}  Ne5 {[%clk 0:01:35]} 23. Red1 {[%clk 0:02:09]}  Rxc1 {[%clk 0:01:11]} 24. Nxc1 {[%clk 0:02:10]}  Rc8 {[%clk 0:01:10]} 25. Bc3 {[%clk 0:02:10]}  Nc4 {[%clk 0:01:00]} 26. Nb3 {[%clk 0:02:05]}  Bb6+ {[%clk 0:00:58]} 27. Ke2 {[%clk 0:02:05]}  Kf8 {[%clk 0:00:45]} 28. g3 {[%clk 0:01:57]}  Ke7 {[%clk 0:00:44]} 29. f4 {[%clk 0:01:46]}  f6 {[%clk 0:00:42]} 30. Kd3 {[%clk 0:01:40]}  Bf2 {[%clk 0:00:36]} 31. g4 {[%clk 0:01:36]}  g5 {[%clk 0:00:35]} 32. Rf1 {[%clk 0:01:30]}  Bg3 {[%clk 0:00:23]} 33. fxg5 {[%clk 0:01:26]}  fxg5 {[%clk 0:00:24]} 34. Nd4 {[%clk 0:01:22]}  Be5 {[%clk 0:00:23]} 35. Ra1 {[%clk 0:01:03]}  Bxd4 {[%clk 0:00:19]} 36. Kxd4 {[%clk 0:01:02]}  Rc6 {[%clk 0:00:14]} 37. Kd5 {[%clk 0:00:46]}  Kd7 {[%clk 0:00:13]} 38. Kd4 {[%clk 0:00:42]}  Ke6 {[%clk 0:00:12]} 39. Rf1 {[%clk 0:00:42]}  Rc8 {[%clk 0:00:10]} 40. Kd3 {[%clk 0:00:36]}  Ne5+ {[%clk 0:00:10]} 41. Ke3 {[%clk 0:00:32]}  Nc4+ {[%clk 0:00:10]} 42. Ke2 {[%clk 0:00:32]}  Nxb2 {[%clk 0:00:06]} 43. Bg7 {[%clk 0:00:25]}  Rc2+ {[%clk 0:00:06]} 44. Ke3 {[%clk 0:00:25]}  Nc4+ {[%clk 0:00:06]} 45. Kd3 {[%clk 0:00:24]}  Rd2+ {[%clk 0:00:05]} 46. Kc3 {[%clk 0:00:24]}  Rh2 {[%clk 0:00:05]} 47. Rf6+ {[%clk 0:00:25]}  Ke7 {[%clk 0:00:05]} 48. Rxh6 {[%clk 0:00:25]}  Re2 {[%clk 0:00:04]} 49. Kd3 {[%clk 0:00:22]}  Re3+ {[%clk 0:00:04]} 50. Kd4 {[%clk 0:00:23]}  Rb3 {[%clk 0:00:03]} 51. Bf6+ {[%clk 0:00:23]}  Kd7 {[%clk 0:00:04]} 52. Bxg5 {[%clk 0:00:19]}  Ne5 {[%clk 0:00:04]} 53. Rh7+ {[%clk 0:00:14]}  Kc6 {[%clk 0:00:03]} 0-1

[Event "January 9 Early 2024"]
[Site "https://www.chess.com"]
[Date "2024.01.11"]
[Round "3"]
[White "Levitan, Tal"]
[Black "Rose, Felix"]
[Result "1-0"]
[Board "249"]
[TimeControl "180+1"]
[WhiteFideId "2804603"]
[BlackFideId "5105722"]
[WhiteElo "2520"]
[BlackElo "2249"]
[WhiteTeam "ISR"]
[BlackTeam "MEX"]
[WhiteClock "0:00:17"]
[BlackClock "0:00:01"]

1. e4 {[%clk 0:02:59]}  e5 {[%clk 0:02:56]} 2. Nf3 {[%clk 0:02:59]}  Nc6 {[%clk 0:02:57]} 3. Nc3 {[%clk 0:02:54]}  Nf6 {[%clk 0:02:56]} 4. Bb5 {[%clk 0:02:54]}  Bb4 {[%clk 0:02:56]} 5. O-O {[%clk 0:02:51]}  O-O {[%clk 0:02:56]} 6. d3 {[%clk 0:02:50]}  d6 {[%clk 0:02:56]} 7. Bg5 {[%clk 0:02:50]}  Bxc3 {[%clk 0:02:55]} 8. bxc3 {[%clk 0:02:51]}  Qe7 {[%clk 0:02:54]} 9. Re1 {[%clk 0:02:51]}  a6 {[%clk 0:02:54]} 10. Bc4 {[%clk 0:02:29]}  Nd8 {[%clk 0:02:46]} 11. d4 {[%clk 0:02:28]}  c5 {[%clk 0:02:35]} 12. a4 {[%clk 0:02:22]}  Bg4 {[%clk 0:02:26]} 13. h3 {[%clk 0:02:04]}  Be6 {[%clk 0:01:50]} 14. d5 {[%clk 0:02:04]}  Bd7 {[%clk 0:01:48]} 15. a5 {[%clk 0:01:59]}  h6 {[%clk 0:01:27]} 16. Bc1 {[%clk 0:01:38]}  Ne8 {[%clk 0:01:21]} 17. Bf1 {[%clk 0:01:36]}  f5 {[%clk 0:01:17]} 18. Nd2 {[%clk 0:01:36]}  f4 {[%clk 0:01:17]} 19. f3 {[%clk 0:01:30]}  g5 {[%clk 0:01:16]} 20. Nc4 {[%clk 0:01:27]}  h5 {[%clk 0:01:06]} 21. Nb6 {[%clk 0:01:26]}  Rb8 {[%clk 0:01:05]} 22. Qe2 {[%clk 0:01:25]}  Nf6 {[%clk 0:01:00]} 23. Qf2 {[%clk 0:01:24]}  Be8 {[%clk 0:00:50]} 24. Bd2 {[%clk 0:01:09]}  Rf7 {[%clk 0:00:47]} 25. Bd3 {[%clk 0:01:03]}  g4 {[%clk 0:00:43]} 26. hxg4 {[%clk 0:01:02]}  hxg4 {[%clk 0:00:43]} 27. Kf1 {[%clk 0:01:02]}  Nh5 {[%clk 0:00:27]} 28. Ke2 {[%clk 0:01:01]}  Rg7 {[%clk 0:00:18]} 29. Kd1 {[%clk 0:00:47]}  Ng3 {[%clk 0:00:17]} 30. Kc1 {[%clk 0:00:46]}  Bg6 {[%clk 0:00:09]} 31. Kb2 {[%clk 0:00:43]}  Nf7 {[%clk 0:00:09]} 32. Red1 {[%clk 0:00:28]}  Ng5 {[%clk 0:00:09]} 33. Be1 {[%clk 0:00:27]}  Kf7 {[%clk 0:00:09]} 34. Qd2 {[%clk 0:00:27]}  gxf3 {[%clk 0:00:10]} 35. Bxg3 {[%clk 0:00:25]}  fxg3 {[%clk 0:00:10]} 36. gxf3 {[%clk 0:00:25]}  Nxf3 {[%clk 0:00:09]} 37. Rf1 {[%clk 0:00:25]}  Qf6 {[%clk 0:00:08]} 38. Qg2 {[%clk 0:00:22]}  Bh5 {[%clk 0:00:08]} 39. Be2 {[%clk 0:00:22]}  Kg8 {[%clk 0:00:02]} 40. Bxf3 {[%clk 0:00:22]}  Bxf3 {[%clk 0:00:03]} 41. Rxf3 {[%clk 0:00:22]}  Qg6 {[%clk 0:00:03]} 42. Rg1 {[%clk 0:00:22]}  Rf8 {[%clk 0:00:02]} 43. Rxg3 {[%clk 0:00:22]}  Qxg3 {[%clk 0:00:01]} 44. Qxg3 {[%clk 0:00:22]}  Rxg3 {[%clk 0:00:02]} 45. Rxg3+ {[%clk 0:00:23]}  Kh7 {[%clk 0:00:03]} 46. Nc4 {[%clk 0:00:23]}  Rf6 {[%clk 0:00:02]} 47. Rg4 {[%clk 0:00:18]}  Kh8 {[%clk 0:00:01]} 48. Rg5 {[%clk 0:00:17]} 1-0